fUSD/lending_fUSD_20240614
["ID","MTS","AMOUNT","RATE_DAILY","PERIOD"]
[329409494,1718325058318,-500.0,0.00024109,2]
[329409495,1718325058359,-2938.74,0.00024109,2]
[329409496,1718325058390,-424.14029243,0.00024109,2]
[329409497,1718325058413,-500.0,0.00024109,2]
[329409498,1718325058431,-500.0,0.00024109,2]
[329409499,1718325058462,-1818.09,0.00024109,2]
[329409500,1718325058478,-500.0,0.00024109,2]
[329409501,1718325058493,-5051.54,0.00024109,2]
[329409502,1718325058516,-1627.1,0.00024109,2]
[329409503,1718325058536,-500.0,0.00024109,2]
[329409504,1718325058548,-674.38,0.00024109,2]
[329409505,1718325058586,-829.97,0.00024109,2]
[329409506,1718325058621,-500.0,0.00024109,2]
[329409507,1718325058680,-1609.04,0.00024109,2]
[329409508,1718325058694,-500.0,0.00024109,2]
[329409509,1718325058716,-500.0,0.00024109,2]
[329409510,1718325058730,-603.59,0.00024109,2]
[329409511,1718325058755,-500.0,0.00024109,2]
[329409512,1718325058792,-665.22,0.00024109,2]
[329409513,1718325058837,-327.83359508,0.00024109,2]
[329409514,1718325058865,-593.99,0.00024109,2]
[329409515,1718325058878,-1197.84,0.00024109,2]
[329409516,1718325058890,-618.71,0.00024109,2]
[329409517,1718325058930,-500.0,0.00024109,2]
[329409518,1718325058946,-535.67,0.00024109,2]
[329409519,1718325058970,-2232.02,0.00024109,2]
[329409520,1718325058984,-1140.17,0.00024109,2]
[329409521,1718325058997,-500.0,0.00024109,2]
[329409522,1718325059033,-553.01,0.00024109,2]
[329409523,1718325059046,-1136.46,0.00024109,2]
[329409524,1718325059060,-1296.3,0.00024109,2]
[329409525,1718325059071,-5774.98,0.00024109,2]
[329409526,1718325059083,-1761.77,0.00024109,2]
[329409527,1718325059094,-1407.75,0.00024109,2]
[329409528,1718325059106,-613.39,0.00024109,2]
[329409529,1718325059157,-500.0,0.00024109,2]
[329409530,1718325059168,-500.0,0.00024109,2]
[329409531,1718325059179,-500.0,0.00024109,2]
[329409532,1718325059208,-2027.24,0.00024109,2]
[329409533,1718325059253,-808.5,0.00024109,2]
[329409534,1718325059277,-1393.93,0.00024109,2]
[329409535,1718325059288,-500.0,0.00024109,2]
[329409536,1718325059310,-582.68,0.00024109,2]
[329409537,1718325059332,-1473.67,0.00024109,2]
[329409538,1718325059347,-500.0,0.00024109,2]
[329409539,1718325059400,-500.0,0.00024109,2]
[329409540,1718325059413,-500.0,0.00024109,2]
[329409541,1718325059424,-2797.45,0.00024109,2]
[329409542,1718325059435,-2354.48,0.00024109,2]
[329409543,1718325059457,-500.0,0.00024109,2]
[329409544,1718325059494,-2221.03,0.00024109,2]
[329409545,1718325059506,-500.0,0.00024109,2]
[329409546,1718325059560,-500.0,0.00024109,2]
[329409547,1718325059572,-500.0,0.00024109,2]
[329409548,1718325059594,-500.0,0.00024109,2]
[329409549,1718325059616,-500.0,0.00024109,2]
[329409550,1718325059654,-500.0,0.00024109,2]
[329409551,1718325059716,-556.72,0.00024109,2]
[329409552,1718325059760,-500.0,0.00024109,2]
[329409553,1718325059773,-500.0,0.00024109,2]
[329409554,1718325059801,-685.71,0.00024109,2]
[329409555,1718325059818,-500.0,0.00024109,2]
[329409556,1718325059830,-500.0,0.00024109,2]
[329409557,1718325059842,-460.67297886,0.00024109,2]
[329409558,1718325059854,-2124.93,0.00024109,2]
[329409559,1718325059868,-500.0,0.00024109,2]
[329409560,1718325059879,-500.0,0.00024109,2]
[329409561,1718325059890,-516.31,0.00024109,2]
[329409562,1718325059916,-500.0,0.00024109,2]
[329409563,1718325059927,-500.0,0.00024109,2]
[329409564,1718325059945,-500.0,0.00024109,2]
[329409565,1718325059963,-1547.87,0.00024109,2]
[329409566,1718325059975,-3334.1,0.00024109,2]
[329409567,1718325060013,-500.0,0.00024109,2]
[329409568,1718325060047,-796.96,0.00024109,2]
[329409569,1718325060108,-500.0,0.00024109,2]
[329409570,1718325060121,-2984.68,0.00024109,2]
[329409571,1718325060172,-500.0,0.00024109,2]
[329409572,1718325060198,-500.0,0.00024109,2]
[329409573,1718325060228,-1217.45,0.00024109,2]
[329409574,1718325060239,-3881.25,0.00024109,2]
[329409575,1718325060278,-500.0,0.00024109,2]
[329409576,1718325060291,-12504.0218902,0.00024157,2]
[329409577,1718325060308,-1100.67,0.00024174,2]
[329409578,1718325060321,-301.33,0.00024247,2]
[329409579,1718325060333,-319.44,0.00024247,2]
[329409580,1718325060361,-845.56,0.00024247,2]
[329409581,1718325060392,-526.76,0.00024247,2]
[329409582,1718325060422,-164.31,0.00024247,2]
[329409583,1718325060456,-353.67,0.00024247,2]
[329409584,1718325060484,-150.0,0.00024247,2]
[329409585,1718325060536,-238.58403677,0.00024283,2]
[329409586,1718325060557,-2817.24107657,0.00024283,2]
[329409587,1718325060595,-189.28942452,0.00024283,2]
[329409588,1718325060620,-215.64274998,0.00024283,2]
[329409589,1718325060631,-600.0,0.00024298,4]
[329409590,1718325060652,-1000.0,0.00024346,2]
[329409591,1718325060664,-603.07,0.00024357,2]
[329409592,1718325060681,-6238.20958346,0.00024381,2]
[329409593,1718325060695,-1110.5121139,0.00024381,2]
[329409594,1718325060709,-2181.59446457,0.00024382,2]
[329409595,1718325060736,-500.0,0.00024383,2]
[329409596,1718325060750,-500.0,0.00024383,2]
[329409597,1718325060761,-500.0,0.00024383,2]
[329409598,1718325060777,-500.0,0.00024383,2]
[329409599,1718325060801,-500.0,0.00024383,2]
[329409600,1718325060827,-518.57,0.00024383,2]
[329409601,1718325060840,-500.0,0.00024383,2]
[329409602,1718325060851,-500.0,0.00024383,2]
[329409603,1718325060862,-556.16958346,0.00024383,2]
[329409604,1718325060895,-500.0,0.00024383,2]
[329409605,1718325060918,-516.66397077,0.00024383,2]
[329409606,1718325060944,-500.0,0.00024383,2]
[329409607,1718325060956,-500.0,0.00024383,2]
[329409608,1718325060982,-500.0,0.00024383,2]
[329409609,1718325061323,-500.0,0.00024383,2]
[329409610,1718325061334,-511.13254127,0.00024383,2]
[329409611,1718325061352,-500.0,0.00024383,2]
[329409612,1718325061370,-500.0,0.00024383,2]
[329409613,1718325061381,-500.0,0.00024383,2]
[329409614,1718325061392,-500.0,0.00024383,2]
[329409615,1718325061407,-151.0,0.00024383,7]
[329409616,1718325061429,-500.0,0.00024383,2]
[329409617,1718325061452,-500.0,0.00024383,2]
[329409618,1718325061469,-500.0,0.00024383,2]
[329409619,1718325061482,-588.96416285,0.00024383,2]
[329409620,1718325061516,-500.0,0.00024383,2]
[329409621,1718325061527,-500.0,0.00024383,2]
[329409622,1718325061552,-500.0,0.00024383,2]
[329409623,1718325061564,-500.0,0.00024383,2]
[329409624,1718325061578,-500.0,0.00024383,2]
[329409625,1718325061593,-500.0,0.00024383,2]
[329409626,1718325061625,-500.0,0.00024383,2]
[329409627,1718325061653,-500.0,0.00024383,2]
[329409628,1718325061674,-172.384447,0.00024383,7]
[329409629,1718325061687,-151.0,0.00024383,7]
[329409630,1718325061701,-151.0,0.00024383,7]
[329409631,1718325061716,-500.0,0.00024383,2]
[329409632,1718325061737,-500.0,0.00024383,2]
[329409633,1718325061749,-500.0,0.00024383,2]
[329409634,1718325061761,-376.31825852,0.00024383,2]
[329409635,1718325061789,-500.0,0.00024383,2]
[329409636,1718325061800,-500.0,0.00024383,2]
[329409637,1718325061835,-151.0,0.00024383,7]
[329409638,1718325061867,-151.0,0.00024383,7]
[329409639,1718325061878,-500.0,0.00024383,2]
[329409640,1718325061902,-404.43,0.00024383,2]
[329409641,1718325061913,-500.0,0.00024383,2]
[329409642,1718325061927,-500.0,0.00024383,2]
[329409643,1718325061975,-500.0,0.00024383,2]
[329409644,1718325061994,-416.31201405,0.00024383,2]
[329409645,1718325062007,-285.01882006,0.00024383,2]
[329409646,1718325062018,-500.0,0.00024383,2]
[329409647,1718325062030,-500.0,0.00024383,2]
[329409648,1718325062046,-500.0,0.00024383,2]
[329409649,1718325062057,-500.0,0.00024383,2]
[329409650,1718325062067,-500.0,0.00024383,2]
[329409651,1718325062098,-500.0,0.00024383,2]
[329409652,1718325062113,-443.3792296,0.00024383,2]
[329409653,1718325062161,-500.0,0.00024383,2]
[329409654,1718325062173,-500.0,0.00024383,2]
[329409655,1718325062183,-303.25877973,0.00024383,2]
[329409656,1718325062194,-500.0,0.00024383,2]
[329409657,1718325062222,-500.0,0.00024383,2]
[329409658,1718325062263,-385.98371482,0.00024383,2]
[329409659,1718325062288,-500.0,0.00024383,2]
[329409660,1718325062299,-500.0,0.00024383,2]
[329409661,1718325062356,-500.0,0.00024383,2]
[329409662,1718325062368,-500.0,0.00024383,2]
[329409663,1718325062392,-500.0,0.00024383,2]
[329409664,1718325062446,-500.0,0.00024383,2]
[329409665,1718325062498,-500.0,0.00024383,2]
[329409666,1718325062510,-151.0,0.00024383,7]
[329409667,1718325062538,-151.0,0.00024383,7]
[329409668,1718325062560,-500.0,0.00024383,2]
[329409669,1718325062572,-892.65,0.00024383,2]
[329409670,1718325062586,-500.0,0.00024383,2]
[329409671,1718325062642,-500.0,0.00024383,2]
[329409672,1718325062654,-500.0,0.00024383,2]
[329409673,1718325062676,-500.0,0.00024383,2]
[329409674,1718325062687,-500.0,0.00024383,2]
[329409675,1718325062734,-500.0,0.00024383,2]
[329409676,1718325062747,-500.0,0.00024383,2]
[329409677,1718325062758,-500.0,0.00024383,2]
[329409678,1718325062771,-151.0,0.00024383,7]
[329409679,1718325062782,-151.0,0.00024383,7]
[329409680,1718325062821,-500.0,0.00024383,2]
[329409681,1718325062833,-500.0,0.00024383,2]
[329409682,1718325062845,-500.0,0.00024383,2]
[329409683,1718325062876,-151.0,0.00024383,7]
[329409684,1718325062890,-159.465463,0.00024383,7]
[329409685,1718325062903,-151.0,0.00024383,7]
[329409686,1718325062937,-151.0,0.00024383,7]
[329409687,1718325062960,-151.0,0.00024383,7]
[329409688,1718325062972,-500.0,0.00024383,2]
[329409689,1718325063019,-151.0,0.00024383,7]
[329409690,1718325063033,-500.0,0.00024383,2]
[329409691,1718325063046,-500.0,0.00024383,2]
[329409692,1718325063068,-500.0,0.00024383,2]
[329409693,1718325063096,-500.0,0.00024383,2]
[329409694,1718325063137,-500.0,0.00024383,2]
[329409695,1718325063160,-500.0,0.00024383,2]
[329409696,1718325063174,-500.0,0.00024383,2]
[329409697,1718325063186,-500.0,0.00024383,2]
[329409698,1718325063228,-500.0,0.00024383,2]
[329409699,1718325063248,-197.67493145,0.00024383,2]
[329409700,1718325063276,-500.0,0.00024383,2]
[329409701,1718325063288,-205.02110217,0.00024383,2]
[329409702,1718325063329,-500.0,0.00024383,2]
[329409703,1718325063392,-500.0,0.00024383,2]
[329409704,1718325063407,-500.0,0.00024383,2]
[329409705,1718325063460,-500.0,0.00024383,2]
[329409706,1718325063504,-500.0,0.00024383,2]
[329409707,1718325063544,-151.0,0.00024383,7]
[329409708,1718325063589,-500.0,0.00024383,2]
[329409709,1718325063628,-151.0,0.00024383,7]
[329409710,1718325063661,-500.0,0.00024383,2]
[329409711,1718325063678,-500.0,0.00024383,2]
[329409712,1718325063690,-238.56444299,0.00024383,2]
[329409713,1718325063705,-500.0,0.00024383,2]
[329409714,1718325063716,-500.0,0.00024383,2]
[329409715,1718325063740,-500.0,0.00024383,2]
[329409716,1718325063753,-500.0,0.00024383,2]
[329409717,1718325063792,-500.0,0.00024383,2]
[329409718,1718325063813,-500.0,0.00024383,2]
[329409719,1718325063824,-151.0,0.00024383,7]
[329409720,1718325063894,-300.33947,0.00024383,7]
[329409721,1718325063905,-500.0,0.00024383,2]
[329409722,1718325063917,-500.0,0.00024383,2]
[329409723,1718325063955,-609.92,0.00024383,2]
[329409724,1718325064000,-500.0,0.00024383,2]
[329409725,1718325064012,-152.57399,0.00024383,7]
[329409726,1718325064025,-566.45,0.00024383,2]
[329409727,1718325064044,-500.0,0.00024383,2]
[329409728,1718325064056,-500.0,0.00024383,2]
[329409729,1718325064084,-500.0,0.00024383,2]
[329409730,1718325064096,-630.35,0.00024383,2]
[329409731,1718325064120,-500.0,0.00024383,2]
[329409732,1718325064152,-500.0,0.00024383,2]
[329409733,1718325064165,-500.0,0.00024383,2]
[329409734,1718325064176,-151.0,0.00024383,7]
[329409735,1718325064196,-500.0,0.00024383,2]
[329409736,1718325064211,-152.764367,0.00024383,7]
[329409737,1718325064241,-547.57,0.00024383,2]
[329409738,1718325064298,-500.0,0.00024383,2]
[329409739,1718325064340,-151.0,0.00024383,7]
[329409740,1718325064393,-151.0,0.00024383,7]
[329409741,1718325064410,-151.0,0.00024383,7]
[329409742,1718325064484,-500.0,0.00024383,2]
[329409743,1718325064496,-500.0,0.00024383,2]
[329409744,1718325064509,-500.0,0.00024383,2]
[329409745,1718325064521,-500.0,0.00024383,2]
[329409746,1718325064539,-500.0,0.00024383,2]
[329409747,1718325064556,-500.0,0.00024383,2]
[329409748,1718325064567,-151.0,0.00024383,7]
[329409749,1718325064578,-500.0,0.00024383,2]
[329409750,1718325064589,-527.9733491,0.00024383,2]
[329409751,1718325064600,-152.712151,0.00024383,7]
[329409752,1718325064610,-500.0,0.00024383,2]
[329409753,1718325064621,-500.0,0.00024383,2]
[329409754,1718325064643,-500.0,0.00024383,2]
[329409755,1718325064659,-500.0,0.00024383,2]
[329409756,1718325064677,-500.0,0.00024383,2]
[329409757,1718325064689,-500.0,0.00024383,2]
[329409758,1718325064700,-500.0,0.00024383,2]
[329409759,1718325064718,-500.0,0.00024383,2]
[329409760,1718325064730,-500.0,0.00024383,2]
[329409761,1718325064775,-151.0,0.00024383,7]
[329409762,1718325064795,-151.650306,0.00024383,7]
[329409763,1718325064834,-500.0,0.00024383,2]
[329409764,1718325064864,-500.0,0.00024383,2]
[329409765,1718325064878,-151.0,0.00024383,7]
[329409766,1718325064901,-500.0,0.00024383,2]
[329409767,1718325064912,-500.0,0.00024383,2]
[329409768,1718325064956,-151.0,0.00024383,7]
[329409769,1718325064969,-151.0,0.00024383,7]
[329409770,1718325064988,-500.0,0.00024383,2]
[329409771,1718325064999,-500.0,0.00024383,2]
[329409772,1718325065013,-500.0,0.00024383,2]
[329409773,1718325065024,-500.0,0.00024383,2]
[329409774,1718325065035,-500.0,0.00024383,2]
[329409775,1718325065053,-500.0,0.00024383,2]
[329409776,1718325065080,-500.0,0.00024383,2]
[329409777,1718325065124,-500.0,0.00024383,2]
[329409778,1718325065141,-151.0,0.00024383,7]
[329409779,1718325065186,-500.0,0.00024383,2]
[329409780,1718325065232,-151.0,0.00024383,7]
[329409781,1718325065304,-500.0,0.00024383,2]
[329409782,1718325065333,-500.0,0.00024383,2]
[329409783,1718325065364,-500.0,0.00024383,2]
[329409784,1718325065385,-509.96,0.00024383,2]
[329409785,1718325065406,-581.88342173,0.00024383,2]
[329409786,1718325065419,-500.0,0.00024383,2]
[329409787,1718325065430,-151.0,0.00024383,7]
[329409788,1718325065450,-500.0,0.00024383,2]
[329409789,1718325065461,-151.0,0.00024383,7]
[329409790,1718325065475,-500.0,0.00024383,2]
[329409791,1718325065493,-151.0,0.00024383,7]
[329409792,1718325065517,-153.999551,0.00024383,7]
[329409793,1718325065549,-500.0,0.00024383,2]
[329409794,1718325065593,-188.76116254,0.00024383,2]
[329409795,1718325065689,-151.0,0.00024383,7]
[329409796,1718325065712,-151.0,0.00024383,7]
[329409797,1718325065787,-586.98561879,0.00024383,2]
[329409798,1718325065799,-500.0,0.00024383,2]
[329409799,1718325065811,-500.0,0.00024383,2]
[329409800,1718325065837,-150.45058139,0.00024383,2]
[329409801,1718325065849,-601.98,0.00024383,2]
[329409802,1718325065865,-500.0,0.00024383,2]
[329409803,1718325065876,-500.0,0.00024383,2]
[329409804,1718325065897,-622.98,0.00024383,2]
[329409805,1718325065912,-151.0,0.00024383,7]
[329409806,1718325065925,-273.214532,0.00024383,7]
[329409807,1718325065942,-500.0,0.00024383,2]
[329409808,1718325065953,-500.0,0.00024383,2]
[329409809,1718325065980,-517.2,0.00024383,2]
[329409810,1718325066010,-500.0,0.00024383,2]
[329409811,1718325066021,-461.21941273,0.00024383,2]
[329409812,1718325066033,-500.0,0.00024383,2]
[329409813,1718325066096,-476.41436332,0.00024383,2]
[329409814,1718325066117,-151.0,0.00024383,7]
[329409815,1718325066144,-192.53797,0.00024383,7]
[329409816,1718325066177,-500.0,0.00024383,2]
[329409817,1718325066189,-500.0,0.00024383,2]
[329409818,1718325066200,-180.71,0.00024383,2]
[329409819,1718325066221,-500.0,0.00024383,2]
[329409820,1718325066233,-283.60766289,0.00024383,2]
[329409821,1718325066244,-500.0,0.00024383,2]
[329409822,1718325066280,-340.29,0.00024383,2]
[329409823,1718325066302,-500.0,0.00024383,2]
[329409824,1718325066313,-802.68,0.00024383,2]
[329409825,1718325066328,-500.0,0.00024383,2]
[329409826,1718325066344,-500.0,0.00024383,2]
[329409827,1718325066392,-151.0,0.00024383,7]
[329409828,1718325066407,-500.0,0.00024383,2]
[329409829,1718325066433,-500.0,0.00024383,2]
[329409830,1718325066453,-500.0,0.00024383,2]
[329409831,1718325066465,-154.020224,0.00024383,7]
[329409832,1718325066508,-500.0,0.00024383,2]
[329409833,1718325066540,-500.0,0.00024383,2]
[329409834,1718325066554,-500.0,0.00024383,2]
[329409835,1718325066673,-500.0,0.00024383,2]
[329409836,1718325066697,-500.0,0.00024383,2]
[329409837,1718325066726,-500.0,0.00024383,2]
[329409838,1718325066757,-532.01,0.00024383,2]
[329409839,1718325066768,-951.2,0.00024383,2]
[329409840,1718325066797,-289.72529885,0.00024383,2]
[329409841,1718325066812,-151.0,0.00024383,7]
[329409842,1718325066836,-151.0,0.00024383,7]
[329409843,1718325066856,-500.0,0.00024383,2]
[329409844,1718325066893,-202.950965,0.00024383,7]
[329409845,1718325067020,-500.0,0.00024383,2]
[329409846,1718325067038,-202.950965,0.00024383,7]
[329409847,1718325067053,-124.42813343,0.00024383,7]
[329409848,1718325067334,-78.52283157,0.00024383,7]
[329409849,1718325067364,-413.89116843,0.00024383,2]
[329409850,1718325067382,-86.10883157,0.00024383,2]
[329409851,1718325067420,-202.950965,0.00024383,7]
[329409852,1718325067433,-500.0,0.00024383,2]
[329409853,1718325067446,-500.0,0.00024383,2]
[329409854,1718325067492,-63.20517727,0.00024383,7]
[329409855,1718325067681,-696.33,0.00024109,2]
[329409856,1718325067694,-139.74578773,0.00024383,7]
[329409857,1718325067705,-202.950965,0.00024383,7]
[329409858,1718325067718,-500.0,0.00024383,2]
[329409859,1718325067757,-500.0,0.00024383,2]
[329409860,1718325067777,-500.0,0.00024383,2]
[329409861,1718325067793,-500.0,0.00024383,2]
[329409862,1718325067829,-500.0,0.00024383,2]
[329409863,1718325067848,-500.0,0.00024383,2]
[329409864,1718325067881,-500.0,0.00024383,2]
[329409865,1718325067915,-500.0,0.00024383,2]
[329409866,1718325067926,-153.037748,0.00024383,7]
[329409867,1718325067937,-500.0,0.00024383,2]
[329409868,1718325067948,-500.0,0.00024383,2]
[329409869,1718325067963,-1631.07,0.00024383,2]
[329409870,1718325067978,-500.0,0.00024383,2]
[329409871,1718325068010,-734.03,0.00024383,2]
[329409872,1718325068024,-468.07703311,0.00024383,2]
[329409873,1718325068065,-558.46200877,0.00024383,2]
[329409874,1718325068095,-2121.76095812,0.00024383,2]
[329409875,1718325068125,-151.0,0.00024383,7]
[329409876,1718325068141,-151.0,0.00024383,7]
[329409877,1718325068151,-151.0,0.00024383,7]
[329409878,1718325068162,-500.0,0.00024383,2]
[329409879,1718325068173,-500.0,0.00024383,2]
[329409880,1718325068188,-500.0,0.00024383,2]
[329409881,1718325068202,-400.050523,0.00024383,7]
[329409882,1718325068216,-400.050523,0.00024383,7]
[329409883,1718325068228,-400.050523,0.00024383,7]
[329409884,1718325068242,-151.0,0.00024383,7]
[329409885,1718325068258,-151.0,0.00024383,7]
[329409886,1718325068284,-151.0,0.00024383,7]
[329409887,1718325068302,-500.0,0.00024383,2]
[329409888,1718325068315,-3172.57,0.00024383,2]
[329409889,1718325068330,-440.49876367,0.00024383,2]
[329409890,1718325068343,-59.50123633,0.00024383,2]
[329409891,1718325068357,-500.0,0.00024383,2]
[329409892,1718325068368,-206.49876367,0.00024383,2]
[329409893,1718325068382,-293.50123633,0.00024383,2]
[329409894,1718325068393,-500.0,0.00024383,2]
[329409895,1718325068404,-500.0,0.00024383,2]
[329409896,1718325068418,-75.26555041,0.00024383,7]
[329409897,1718325068562,-78.56936459,0.00024383,7]
[329409898,1718325068600,-826.49,0.00024383,2]
[329409899,1718325068611,-1185.8,0.00024383,2]
[329409900,1718325068638,-4332.39282213,0.00024383,2]
[329409901,1718325224745,1323573.57067781,0.00014,2]
[329409902,1718325283278,958.2785447,0.000133,2]
[329409903,1718325297266,458.07299525,0.000133,2]
[329409905,1718325602033,4761.97722904,0.000133,2]
[329409906,1718325602180,19786.35336253,0.000133,2]
[329409907,1718325602877,150.0,0.000133,2]
[329409908,1718325603185,150.0,0.000133,2]
[329409909,1718325603596,150.0,0.000133,2]
[329409910,1718325603645,155.0,0.000133,2]
[329409911,1718325603726,150.0,0.000133,2]
[329409912,1718325603944,150.0,0.000133,2]
[329409913,1718325604110,150.0,0.000133,2]
[329409914,1718325604331,150.0,0.000133,2]
[329409915,1718325604496,150.0,0.000133,2]
[329409916,1718325604756,150.0,0.000133,2]
[329409917,1718325604932,150.0,0.000133,2]
[329409918,1718325605157,150.0,0.000133,2]
[329409919,1718325605514,150.0,0.000133,2]
[329409920,1718325605675,150.0,0.000133,2]
[329409921,1718325605918,150.0,0.000133,2]
[329409922,1718325606132,165.64016405,0.000133,2]
[329409923,1718325607285,958.2785447,0.00012635,2]
[329409924,1718325608386,16000.0,0.000133,2]
[329409925,1718325609541,290.01383422,0.000133,2]
[329409926,1718325612733,104241.5538446,0.000133,2]
[329409927,1718325616116,180.76997474,0.000133,2]
[329409928,1718325616541,156.26119827,0.000133,2]
[329409929,1718325616919,551.62926615,0.000133,2]
[329409930,1718325618045,4761.97722904,0.000133,2]
[329409931,1718325620209,19786.35336253,0.000133,2]
[329409932,1718325622292,401.10828732,9.975e-05,2]
[329409933,1718325625325,219.02483678,0.000133,2]
[329409934,1718325626295,363.12689841,0.000133,2]
[329409935,1718325627488,290.01383422,0.000133,2]
[329409936,1718325629302,478.34856572,0.00012635,2]
[329409937,1718325631741,180.76997474,0.000133,2]
[329409938,1718325632690,551.04968801,0.000133,2]
[329409939,1718325638016,4761.97722904,0.000133,2]
[329409940,1718325638313,251.12831632,0.000133,2]
[329409941,1718325638870,1364.1706901,0.000133,2]
[329409942,1718325642434,19786.35336253,0.000133,2]
[329409943,1718325643465,290.01383422,0.000133,2]
[329409944,1718325651784,180.43048946,0.000133,2]
[329409945,1718325654985,1364.1706901,0.000133,2]
[329409946,1718325659477,337.59937844,0.000133,2]
[329409947,1718325660201,7978.09889208,0.000133,2]
[329409948,1718325664030,4761.97722904,0.000133,2]
[329409949,1718325675025,1364.1706901,0.000133,2]
[329409950,1718325680153,1022.62163925,0.000133,2]
[329409951,1718325692925,593.5542564,0.000133,2]
[329409952,1718326001934,266.39840914,0.00013233,2]
[329409953,1718326168174,164.66,0.00012834,2]
[329409960,1718326234481,-155.0,0.00014595,4]
[329409961,1718326234496,-312.02577866,0.00014596,2]
[329409962,1718326234548,-161.32455877,0.00014597,2]
[329409963,1718326234561,-405.34966257,0.00014694,2]
[329409964,1718326234578,-988.32184878,0.00014694,2]
[329409965,1718326234589,-1500.0,0.00014695,2]
[329409966,1718326234676,-1000.0,0.000147,5]
[329409967,1718326234697,-1123.26335576,0.000148,5]
[329409968,1718326236211,-876.73664424,0.000148,5]
[329409970,1718326236223,-2440.6402,0.000149,2]
[329409971,1718326236235,-2582.47098681,0.000149,2]
[329409973,1718326236248,-3000.0,0.000149,5]
[329409976,1718326236277,-192.33117875,0.000149,2]
[329409977,1718326236291,-4894.39175596,0.000149,2]
[329409980,1718326236305,-219.73,0.00014904,3]
[329409981,1718326236316,-150.0,0.00014959,2]
[329409983,1718326236330,-152.33,0.0001499,2]
[329409985,1718326236345,-152.33,0.0001499,2]
[329409987,1718326236374,-152.33,0.0001499,2]
[329409989,1718326236389,-152.33,0.0001499,2]
[329409991,1718326236426,-152.33,0.0001499,2]
[329409992,1718326236444,-527.00994395,0.00014998,2]
[329409994,1718326236467,-302.19929029,0.00014998,2]
[329409995,1718326236482,-220.4994974,0.00014998,2]
[329409996,1718326236492,-454.16251986,0.00014998,2]
[329409997,1718326236535,-45.83748014,0.00014998,2]
[329409998,1718326236559,-155.0,0.00014998,2]
[329409999,1718326236571,-298.46232396,0.00014999,2]
[329410000,1718326236585,-741.73524092,0.00014999,2]
[329410001,1718326236597,-1928.61610311,0.00015,2]
[329410002,1718326236627,-5278.91612907,0.00015,2]
[329410003,1718326236644,-2275.48656386,0.00015,2]
[329410004,1718326236664,-260.79473481,0.00015,2]
[329410005,1718326236683,-676.76672063,0.00015,2]
[329410006,1718326236764,-127008.99506705,0.00015,2]
[329410007,1718326236777,-2260.06649913,0.00015,2]
[329410008,1718326236808,-4668.04030603,0.00015,2]
[329410009,1718326236826,-1184.85534718,0.00015,2]
[329410010,1718326236843,-578.5596183,0.00015,2]
[329410011,1718326236867,-499.2927066,0.00015,2]
[329410021,1718326240912,-4328.48644228,0.00015,2]